Cogmind - Beta 13 @@@ ROGUE MODE // 2024.04.02 @ 13:30:42 Player: nowtakenusername Result: Destroyed by G-34 Mercenary with Small Laser Performance ------------- Evolutions (1) 500 Regions Visited (3) 600 Robots Destroyed (70) 350 Value Destroyed (1820) 1820 Prototype IDs (7) 140 Alien Tech Used (0) 0 Bonus (14) 14 TOTAL SCORE: 3424 Bonus ------- High Alert Combat Kills 14 Cogmind --------- Core Integrity 0/400 Matter 251/300 Energy 259/280 System Corruption 0% Temperature Cool (12) Movement Hovering (52) Location -9/Storage Parts ------- > --- POWER (1) -------- Cooled Ion Engine > --- PROPULSION (3) --- Airjet Airjet Airjet > --- UTILITY (3) ------ Small Storage Unit Signal Interpreter Hacking Suite > --- WEAPON (2) ------- Improved EM Shotgun Improved Assault Rifle > --- INVENTORY (8) ---- Cooled Ion Engine Airjet Heat Sink Sensor Array Hacking Suite Improved Medium Laser Improved Assault Rifle Datajack Peak State ------------ > --- POWER ------------ Heavy Ion Engine > --- PROPULSION ------- Airjet Airjet Airjet > --- UTILITY ---------- Small Storage Unit Signal Interpreter Hacking Suite > --- WEAPON ----------- Advanced Beam Cannon Improved Assault Rifle > --- INVENTORY -------- Light Ion Engine Light Ion Engine Airjet Heat Sink Sensor Array Hacking Suite Mini Grenade Launcher Datajack [Rating: 24] Favorites ----------- Power Light Ion Engine Engine Light Ion Engine Power Core Light Nuclear Core Propulsion Aluminum Leg Treads Light Treads Leg Aluminum Leg Hover Unit Airjet Flight Unit Flight Unit Utility Hacking Suite Device Sensor Array Storage Small Storage Unit Processor Signal Interpreter Hackware Hacking Suite Protection Hardened Light Armor Plating Weapon Advanced Beam Cannon Energy Gun Medium Laser Energy Cannon Advanced Beam Cannon Ballistic Gun Improved Assault Rifle Impact Weapon Heavy Hammer Build | -11 -10 -9 -9 ------- Run | Yrd Mat Mat Sto Slots Evolved 2 | . . 2 . Power . | . . . . Propulsion 1 | . . 1 . Utility 1 | . . 1 . Weapon . | . . . . Parts Attached 83 | 5 21 50 7 Power 17 | 1 6 6 4 Engine 15 | 1 5 5 4 Core 2 | . 1 1 . Reactor . | . . . . Propulsion 25 | 2 4 19 . Treads 5 | . . 5 . Leg 4 | 2 2 . . Wheel . | . . . . Hover 7 | . 2 5 . Flight 9 | . . 9 . Utility 19 | . 3 16 . Device 8 | . 1 7 . Storage 2 | . 1 1 . Processor 2 | . . 2 . Hackware 2 | . 1 1 . Protection 5 | . . 5 . Artifact . | . . . . Weapon 22 | 2 8 9 3 Energy Gun 7 | 2 1 2 2 Energy Cannon 13 | . 7 6 . Ballistic Gun 1 | . . . 1 Ballistic Cannon . | . . . . Launcher . | . . . . Special Weapon . | . . . . Impact Weapon 1 | . . 1 . Slashing Weapon . | . . . . Piercing Weapon . | . . . . Special Melee Weapon . | . . . . Unidentified Prototypes 5 | . 1 . 4 Parts Lost 17 | . 2 15 . Power 3 | . . 3 . Propulsion 5 | . 1 4 . Utility 6 | . . 6 . Weapon 3 | . 1 2 . Highest Loss Streak 6 | . 1 6 . To Critical Strikes . | . . . . Average Slot Usage (%) 89 | . 88 89 100 Engine 8 | . 10 7 11 Core 2 | . 2 1 . Treads 8 | . . 16 . Leg 6 | . 13 2 . Hover 7 | . 6 5 33 Flight 3 | . . 6 . Device 7 | . 7 7 . Storage 4 | . 5 2 11 Processor 2 | . . 2 11 Hackware 8 | . 13 4 11 Protection 5 | . . 11 . Energy Gun 4 | . 2 4 10 Energy Cannon 16 | . 23 12 1 Impact Weapon 2 | . . 4 . Naked Turns . | . . . . Heaviest Build 26 | 7 18 26 20 Greatest Support 63 | 20 20 63 24 Greatest Overweight (x) 3 | . 3 3 . Average Overweight (x) . | . . . . Largest Inventory Capacity 8 | 5 8 8 8 Average Capacity 5 | 5 6 5 8 Most Carried 8 | 1 7 8 8 Average Carried 4 | . 5 5 7 Final Capacity 8 | 5 8 8 8 Final Carried 8 | 1 7 8 8 Class Distribution -------------------- 68% | Mutant 29% | Scavenger-Mutant Dominant Class ---------------- Mutant | -10/Materials Mutant | -9/Materials Mutant | -9/Storage Resources | -11 -10 -9 -9 ----------- Run | Yrd Mat Mat Sto Matter Collected 1201 | 250 205 575 171 Remotely 40 | . . 40 . Salvage Created 2305 | 34 563 1301 407 Parts 145 | 2 33 82 28 Haulers Intercepted . | . . . . Recyclers Shooed . | . . . . Parts Field Recycled . | . . . . Retrieved Matter . | . . . . Parts Self-Destructed . | . . . . Prevented . | . . . . Kills | -11 -10 -9 -9 ------- Run | Yrd Mat Mat Sto Combat Hostiles Destroyed 53 | 1 11 33 8 Melee 3 | . . 3 . Guns 17 | 1 1 7 8 Cannons 28 | . 9 19 . Classes Destroyed 7 | 1 3 3 . Worker 1 | . 1 . . Recycler 2 | . . 2 . Operator 5 | . 2 3 . Watcher 9 | . 3 5 1 Swarmer 18 | . . 18 . Grunt 24 | 1 11 7 5 Sentry 11 | . . 8 3 Best Kill Streak 5 | 1 3 5 3 Combat Bots Only 5 | 1 3 5 3 Max Kills in Single Turn 2 | 1 1 2 1 Gunslinging . | . . . . Exploded . | . . . . Melee 1 | . . 1 . Uniques/NPCs Destroyed . | . . . . Combat | -11 -10 -9 -9 -------- Run | Yrd Mat Mat Sto Hostile Shots Fired 365 | 3 46 285 31 Missed 113 | 1 17 82 13 Damage Taken 2717 | 23 354 2060 280 Core 514 | . 112 360 42 Absorbed by Shields 55 | . . 55 . Regen/Repaired (Parts) 120 | . 25 95 . Core Remaining (%) 77 | 100 55 . . Volleys Fired 175 | 3 34 93 45 Largest 2 | 2 2 2 2 Hottest 136 | 90 136 136 113 Shots Fired 302 | 6 65 147 84 Gun 160 | 6 26 45 83 Cannon 142 | . 39 102 1 Launcher . | . . . . Special . | . . . . Kinetic 44 | . . . 44 Thermal 207 | 3 53 126 25 Explosive . | . . . . Electromagnetic 51 | 3 12 21 15 Robot Hit Streak 14 | 4 9 14 10 Robot Miss Streak 8 | 1 3 8 2 Penetration Max . | . . . . Secondary Targets 1 | . . . 1 Max Gunslinging Chain 1 | . . . 1 Shots Hit Robots 178 | 4 42 101 31 Core Hits 77 | 2 20 40 15 Critical Kills . | . . . . Critical Parts Destroyed 5 | . . 5 . Critical Strikes 7 | . 1 5 1 Burn 2 | . 1 . 1 Smash 5 | . . 5 . Melee Attacks 25 | . . 25 . Impact 25 | . . 25 . Slashing . | . . . . Piercing . | . . . . Sneak Attacks 1 | . . 1 . Combat Hostiles . | . . . . Follow-up Attacks . | . . . . Damage Inflicted 3713 | 51 787 2316 559 Guns 1280 | 51 231 439 559 Cannons 1680 | . 556 1124 . Explosions . | . . . . Melee 753 | . . 753 . Ramming . | . . . . Kinetic 265 | . . . 265 Thermal 2160 | 24 693 1377 66 Explosive . | . . . . Electromagnetic 535 | 27 94 186 228 Impact 753 | . . 753 . Slashing . | . . . . Piercing . | . . . . Highest Corruption 2 | . 2 . . Average Corruption 2 | . 2 . . Corruption Purged . | . . . . Corruption Blocked . | . . . . Effects 1 | . 1 . . Matter Fused 1 | . 1 . . Overload Shots . | . . . . Overflow Damage 312 | . . 312 . Projectiles 43 | . . 43 . Explosions . | . . . . Melee 269 | . . 269 . Knockbacks 3 | . . 3 . Impact 3 | . . 3 . Kinetic . | . . . . Secondary . | . . . . Self-Inflicted Damage . | . . . . Shots . | . . . . Rammed . | . . . . Targets Rammed . | . . . . Kicked . | . . . . Crushed . | . . . . Highest Temperature 700 | 102 432 700 151 Average Temperature 154 | 54 146 192 58 Received Heat Transfer 852 | 12 216 471 153 Effects 29 | . 3 26 . Shutdowns 7 | . 2 5 . Energy Bleed 3 | . . 3 . Interference 5 | . . 5 . Matter Decay 3 | . . 3 . Short Circuit 1 | . . 1 . Damage (minor) 3 | . 1 2 . Damage (major) 6 | . . 6 . Damage (core) 1 | . . 1 . Siege Activations . | . . . . Robots Corrupted . | . . . . Combat Hostiles . | . . . . Parts Fried 1 | . . 1 . Impact Corruptions 11 | . . 11 . Robots Melted 2 | . 1 1 . Combat Hostiles 2 | . 1 1 . Parts Melted 12 | . . 11 1 Heat Transferred 4366 | 74 1480 2590 222 Parts Sabotaged . | . . . . Parts Stolen . | . . . . Parts Stripped . | . . . . Power Chain Reactions . | . . . . Alert | -11 -10 -9 -9 ------- Run | Yrd Mat Mat Sto Peak Influence 456 | 20 216 456 379 Initial 131 | . . 20 131 Average 106 | 12 63 142 230 Maximum Alert Level 2 | . 1 2 1 Low Security (%) 80 | 100 94 72 36 Level 1 16 | . 5 22 63 Level 2 2 | . . 5 . Level 3 . | . . . . Level 4 . | . . . . Level 5 . | . . . . High Security . | . . . . Max Security . | . . . . Squads Dispatched 9 | . 3 4 2 Investigation 6 | . 2 3 1 Extermination . | . . . . Reinforcement 3 | . 1 1 1 Assault . | . . . . Garrison . | . . . . Intercept . | . . . . Searches Triggered . | . . . . Construction Impeded . | . . . . Haulers Reinforced . | . . . . Active Scanning Responses . | . . . . Cargo Convoy Interrupts . | . . . . Stealth | -11 -10 -9 -9 --------- Run | Yrd Mat Mat Sto Distress Signals 4 | . . 4 . Communications Jammed . | . . . . Distress Signals . | . . . . Times Spotted 73 | 1 14 45 13 Peak Tracking Total 6 | 1 3 6 5 Tactical Retreats 2 | . . 2 . Traps | -11 -10 -9 -9 ------- Run | Yrd Mat Mat Sto Traps Triggered 8 | . 7 1 . Indirectly . | . . . . Trap Hack Attempts . | . . . . Triggered . | . . . . Disarmed . | . . . . Reprogrammed . | . . . . Reused . | . . . . Traps Extracted . | . . . . Installed . | . . . . Triggered . | . . . . Machines | -11 -10 -9 -9 ---------- Run | Yrd Mat Mat Sto Machines Disabled 4 | . 1 2 1 Max in Single Turn 1 | . 1 1 1 Machines Repaired . | . . . . Machines Dismantled . | . . . . Machines Sabotaged . | . . . . Overloaded Fab Kills . | . . . . Hacking | -11 -10 -9 -9 --------- Run | Yrd Mat Mat Sto Machines Accessed 26 | . 9 14 3 Terminals 18 | . 6 10 2 Fabricators . | . . . . Repair Stations 3 | . 1 2 . Recycling Units 5 | . 2 2 1 Scanalyzers . | . . . . Garrison Access . | . . . . Total Hacks 75 | . 31 33 11 Successful 52 | . 24 22 6 Failed 22 | . 6 11 5 Catastrophic 1 | . 1 . . Database Lockouts 1 | . 1 . . Manual . | . . . . Terminals 59 | . 26 23 10 Fabricators . | . . . . Repair Stations 8 | . 2 6 . Recycling Units 8 | . 3 4 1 Scanalyzers . | . . . . Garrison Access . | . . . . Terminal Hacks 39 | . 19 15 5 Record 14 | . 10 2 2 Robot Analysis 2 | . . 2 . Prototype ID Bank 1 | . 1 . . Branch Access Points 2 | . 1 1 . Emergency Access Points 4 | . 1 3 . Recycling Unit Index 1 | . 1 . . Alert Level 5 | . 2 3 . Unreport Threat 1 | . . 1 . Locate Traps 1 | . . 1 . Maintenance Status 1 | . 1 . . Investigation Status 1 | . . . 1 Assault Status 2 | . . 1 1 Recall Investigation 1 | . . . 1 Hauler Manifests 1 | . 1 . . Zone Layout 2 | . 1 1 . Fabricator Hacks . | . . . . Repair Station Hacks 5 | . 2 3 . Scan Component 3 | . 1 2 . Repair 2 | . 1 1 . Recycling Unit Hacks 8 | . 3 4 1 Process 1 | . 1 . . Report Inventory 6 | . 2 3 1 Retrieve Components 1 | . . 1 . Scanalyzer . | . . . . Garrison Access Hacks . | . . . . Unauthorized Hacks . | . . . . Terminals . | . . . . Fabricators . | . . . . Repair Stations . | . . . . Recycling Units . | . . . . Scanalyzers . | . . . . Garrison Access . | . . . . Data Cores Recovered 4 | . 1 3 . Used 2 | . . 2 . Hacking Detections 14 | . 3 10 1 Full Trace Events 5 | . 1 3 1 Feedback Events . | . . . . Feedback Blocked . | . . . . Robot Schematics Acquired . | . . . . Robots Built . | . . . . Authchips . | . . . . Time . | . . . . Total Robot Build Rating . | . . . . Part Schematics Acquired . | . . . . Parts Built . | . . . . Authchips . | . . . . Time . | . . . . Total Part Build Rating . | . . . . Parts Repaired 2 | . 1 1 . Time 51 | . 26 25 . Parts Recycled . | . . . . Recycled Matter 61 | . 61 . . Retrieved Matter . | . . . . Retrieved Components 1 | . . 1 . Parts Scanalyzed . | . . . . Part Schematics Acquired . | . . . . Parts Damaged . | . . . . Bothacking | -11 -10 -9 -9 ------------ Run | Yrd Mat Mat Sto Used RIF Installer . | . . . . Robots Hacked . | . . . . Non-combat . | . . . . Combat . | . . . . Robot Hacks Applied . | . . . . Relay Couplers Released . | . . . . Fabnet Peak Effective % . | . . . . Robots Rewired . | . . . . Allies Hacked . | . . . . Hacks Repelled . | . . . . Allies | -11 -10 -9 -9 -------- Run | Yrd Mat Mat Sto Total Allies . | . . . . Largest Group . | . . . . Highest-Rated Group . | . . . . Highest-Rated Ally . | . . . . Total Orders . | . . . . Ally Attacks . | . . . . Total Damage . | . . . . Kills . | . . . . Allies Corrupted . | . . . . Allies Melted . | . . . . Intel | -11 -10 -9 -9 ------- Run | Yrd Mat Mat Sto Robot Analysis Total 2 | . . 2 . Derelict Logs Recovered . | . . . . Drone Launches . | . . . . Drone Recoveries . | . . . . Exploration | -11 -10 -9 -9 ------------- Run | Yrd Mat Mat Sto Turns Passed 4089 | 468 1445 1867 309 Spaces Moved 2619 | 127 981 1327 184 Core 22 | 15 7 . . Treads 498 | . . 498 . Legs 739 | 112 520 107 . Wheels . | . . . . Hover 927 | . 454 289 184 Flight 433 | . . 433 . Fastest Speed 32 | 50 60 32 52 Average Speed 101 | 111 120 93 52 Slowest Speed 280 | 120 200 280 52 Overloaded Moves . | . . . . Propulsion Burnouts . | . . . . Robots Hopped 1 | . . 1 . Cave-ins Triggered . | . . . . Exploration Rate (%) 57 | 13 98 84 35 Regions Visited 3 Branch Regions 1 Pre-discovered Areas . | . . . . Known Exits Taken 1 | . . 1 . Unknown Exits Taken 2 | 1 1 . . Scrap Searched . | . . . . Spaces Dug . | . . . . Terrain Destroyed . | . . . . Melee . | . . . . Projectile . | . . . . AOE . | . . . . Terrain Rammed . | . . . . Walls Destroyed . | . . . . Machines Disabled . | . . . . Actions | -11 -10 -9 -9 --------- Run | Yrd Mat Mat Sto Total 3693 | 444 1174 1759 316 Wait 709 | 309 114 221 65 Move 2614 | 126 980 1324 184 Hop 1 | . . 1 . Pick Up 37 | 1 14 15 7 Fast Attach 43 | 5 12 25 1 Attach 16 | . 5 11 . Detach 4 | . 1 3 . Swap 24 | . 4 14 6 Drop 45 | . 10 27 8 Fire 175 | 3 34 93 45 Melee 25 | . . 25 . Ram . | . . . . Kick . | . . . . Crush . | . . . . Escape Stasis . | . . . . Rewire . | . . . . Trap . | . . . . Miscellaneous . | . . . . Route ------- -11/Scrapyard -10/Materials (discovered 5 exits: *Mat x3 / *Min x2) -9/Materials (discovered 4 exits: [*Mat x2] / *Min / *Sto) -9/Storage History --------- Turn | Location | Event 2 | -11/Scrapyard | Met Revision 17 85 | -11/Scrapyard | Discovered new exit (range 8) 469 | -11/Scrapyard | Entered Materials 470 | -10/Materials | Build established: Mutant 629 | -10/Materials | Discovered new exit (range 10) 849 | -10/Materials | Repaired Lgt. Ion Engine 1158 | -10/Materials | Build established: Scavenger-Mutant 1297 | -10/Materials | Identified exit to Mines 1345 | -10/Materials | Discovered new exit (range 10) 1599 | -10/Materials | Build established: Mutant 1698 | -10/Materials | Central database locked down 1858 | -10/Materials | Discovered new exit (range 9) 1914 | -10/Materials | Entered another Materials area 1914 | -9/Materials | Evolved 2 slots: Propulsion x1, Utility x1 1969 | -9/Materials | Repaired Adv. Beam Cannon 2142 | -9/Materials | Lost 4 parts (1p1n1u1w) 2992 | -9/Materials | Discovered new exit (range 7) 3005 | -9/Materials | Identified exit to Mines 3005 | -9/Materials | Identified exit to Storage 3096 | -9/Materials | Core integrity fell below 50% 3353 | -9/Materials | Core integrity fell below 20% 3406 | -9/Materials | Lost 6 parts (1p1n3u1w) 3534 | -9/Materials | Discovered new exit (range 15) 3660 | -9/Materials | Discovered new exit (range 16) 3781 | -9/Materials | Entered Storage 4090 | -9/Storage | Destroyed by G-34 Mercenary with Small Laser Last Messages --------------- >>Enumerate(Investigations) Retrieving latest reported positions... Found 1 active investigation squad. Downloaded coordinate data. [Achievement: GoHome()] >>Recall(Investigation) Establishing remote squad link... Recalled investigation squad JNFYH6AFQB. R-06 Scavenger inserts Corrupted Aluminum Leg into recycling unit. R-06 Scavenger inserts Lgt. Armor Plating into recycling unit. Recycling unit begins recycling process. R-06 Scavenger inserts Corrupted Heat Sink into recycling unit. R-06 Scavenger inserts Lgt. Treads into recycling unit. Recycling unit begins recycling process. G-34 Mercenary destroyed. Switching to secondary target: G-34 Mercenary. Map ----- +----------------------------------------------------+ | | | ????##########????????????????????????? | | ????# #????????????????????????? | | ????# """""" #????????????????????????? | | ##### "????" #????????????????????????? | | ## "????" #????????????????????????? | | ## """""" #????????????????????????? | | " ## #????????????????????????? | | " + #????????????????????????? | | " ## #????????????????????????? | | ## #?????????????#######????? | | ##+###+################## #????? | | ## = #????? | | ?# [ #????? | | / """" #????? | | # """""" ###### #????? | | ?# """"" "# ##### ##????? | | ?# """"" T# # #?????? | | ?# % % "# #r #?????? | | ?# % %= # # ###???? | | ?# #[[ gg T#???? | | ?## #################[[ [%# % ""#???? | | ??# #???????????????#[ !# ! ###???? | | ??# ??????????????### r # #?????? | | ????????????????????#""r # #?????? | | ????????????????????#"Y "@ # #?????? | | ????????????????????#"" T # #?????? | | ????????????????????### " # #?????? | | ??????????????????????# # #?????? | | ??????????????????????####### #?????? | | ????????????????????????????# #?????? | | ????????????????????????????# #?????? | | ????????????????????????????# #?????? | | ????????????????????????????# #?????? | | ????????????????????????????# #?????? | | ????????????????????????????? ??????? | | ??????????????????????????????????????? | | ??????????????????????????????????????? | | ??????????????????????????????????????? | | ??????????????????????????????????????? | | ??????????????????????????????????????? | | ??????????????????????????????????????? | | ??????????????????????????????????????? | | ??????????????????????????????????????? | | ??????????????????????????????????????? | | ??????????????????????????????????????? | | ??????????????????????????????????????? | | ??????????????????????????????????????? | | ??????????????????????????????????????? | | ??????????????????????????????????????? | +----------------------------------------------------+ Best States ------------- Heat Dissipation 50 Energy Generation 14 Energy Capacity 280 Matter Stores 300 Matter Capacity 300 Sight Range 16 Robot Scan Range 14 Terrain Scan Density 10 Armor Coverage 300 Evasion (%) 63 Targeting Accuracy 6 Recoil Reduction 3 Offensive Hacking 10 Item Schematics ----------------- None Robot Schematics ------------------ None Fabricated ------------ Nothing Alien Tech Used ----------------- None Achievements -------------- Crack Shot Dynamic Key Everything Is Under Control GoHome() It's Just You Librarian Shopping List Challenges ------------ None Game ------ Seed LightBoreStorage Manual? 0 Play Time 01:02:48 Cumulative 3.7 hours Start 2024.04.02 @ 12:31:07 End 2024.04.02 @ 13:30:42 Sessions 1 Manual Loads 0 Difficulty Rogue Special Mode None Game No. 3 Rogue 3 Adventurer 0 Explorer 0 Win Type - Total 0 Types 0/0/0/0/0/0/0/0/0 Lore% 6 Gallery% 5 Achievement% 6 Wizard Run 0 Options --------- Layout 1 ASCII 0 Keyboard 0 Movement Mouse Keybinds 0 Fullscreen 1 Font 24/Smallcaps Map View 50x35 Zoom Use 0% Tactical HUD 0 Map Filters NONE Filters NONE Steam 1 RUN: 9556d4d6-dc44-4d65-b492-ba2fb2dee0ab